Cogmind - Beta 14 *** ADVENTURER MODE // 2024.10.15 @ 14:59:14 Player: Jefffff Result: Destroyed by Y-54 Guardian with Flak Gun Performance ------------- Evolutions (0) 0 Regions Visited (3) 600 Robots Destroyed (23) 115 Value Destroyed (361) 361 Prototype IDs (2) 40 Alien Tech Used (0) 0 Bonus (0) 0 TOTAL SCORE: 1116 Bonus ------- None Cogmind --------- Core Integrity 0/250 Matter 300/300 Energy 100/100 System Corruption 0% Temperature Cool (12) Movement Core (750) Ox14 Location -7/Recycling Parts ------- > --- POWER (1) -------- (None) > --- PROPULSION (2) --- (None) > --- UTILITY (2) ------ High-capacity Storage Unit Structural Scanner > --- WEAPON (2) ------- Mace Mace > --- INVENTORY (20) --- Compact Wheel Compact Wheel Compact Wheel Compact Wheel Sensor Array Seismic Detector ECM Suite Makeshift Light Armor Plating Beam Cannon Autogun Autogun Light Cannon Light Cannon Rocket Launcher Rocket Launcher Dirty Datajack (20) Mining Laser Mining Laser Peak State ------------ > --- POWER ------------ Ion Engine > --- PROPULSION ------- Compact Wheel Compact Wheel > --- UTILITY ---------- High-capacity Storage Unit Light Armor Plating > --- WEAPON ----------- Mace Mace > --- INVENTORY -------- Ion Engine Compact Wheel Compact Wheel Compact Wheel Compact Wheel Compact Wheel Structural Scanner Sensor Array Seismic Detector Makeshift Light Armor Plating Beam Cannon Autogun Autogun Light Cannon Light Cannon Rocket Launcher Rocket Launcher Dirty Datajack Mining Laser Mining Laser [Rating: 12] Favorites ----------- Power Ion Engine Engine Ion Engine Propulsion Compact Wheel Leg Aluminum Leg Wheel Compact Wheel Hover Unit Hover Unit Utility High-capacity Storage Unit Device Heat Sink Storage High-capacity Storage Unit Protection Light Armor Plating Weapon Mace Energy Gun Medium Laser Ballistic Gun Assault Rifle Impact Weapon Mace Build | -11 -10 -10 -7 ------- Run | Yrd Mat Sub Rec Slots Evolved . | . . . . Power . | . . . . Propulsion . | . . . . Utility . | . . . . Weapon . | . . . . Parts Attached 22 | 6 11 5 . Power 3 | 1 1 1 . Engine 3 | 1 1 1 . Core . | . . . . Reactor . | . . . . Propulsion 9 | 2 5 2 . Treads . | . . . . Leg 3 | 2 1 . . Wheel 4 | . 2 2 . Hover 2 | . 2 . . Flight . | . . . . Utility 6 | 1 3 2 . Device 2 | . 1 1 . Storage 3 | 1 2 . . Processor . | . . . . Hackware . | . . . . Protection 1 | . . 1 . Artifact . | . . . . Weapon 4 | 2 2 . . Energy Gun 1 | 1 . . . Energy Cannon . | . . . . Ballistic Gun 1 | 1 . . . Ballistic Cannon . | . . . . Launcher . | . . . . Special Weapon . | . . . . Impact Weapon 2 | . 2 . . Slashing Weapon . | . . . . Piercing Weapon . | . . . . Special Melee Weapon . | . . . . Unidentified Prototypes . | . . . . Parts Lost 7 | . . 4 3 Power 2 | . . 1 1 Propulsion 4 | . . 2 2 Utility 1 | . . 1 . Weapon . | . . . . Highest Loss Streak 3 | . . 3 3 To Critical Strikes . | . . . . Average Slot Usage (%) 97 | . 97 98 97 Engine 13 | . 14 13 14 Leg 6 | . 8 . . Wheel 18 | . 15 27 25 Hover 2 | . 3 . . Device 9 | . 11 3 14 Storage 14 | . 14 14 14 Protection 2 | . . 9 . Energy Gun 1 | . 2 . . Ballistic Gun 1 | . 2 . . Impact Weapon 25 | . 23 28 28 Peak Build Rating 12 | 6 11 12 12 Average Rating 9 | 4 9 11 11 On Entrance 7 | . 6 11 11 Naked Turns . | . . . . Heaviest Build 52 | 14 50 52 50 Greatest Support 32 | 20 32 32 32 Greatest Overweight (x) 3 | . 3 3 1 Average Overweight (x) . | . . 1 1 Largest Inventory Capacity 20 | 8 20 20 20 Average Capacity 15 | 7 14 20 20 Most Carried 20 | 4 20 20 18 Average Carried 14 | 2 13 19 17 Final Capacity 20 | 8 20 20 20 Final Carried 20 | 4 20 17 18 Class Distribution -------------------- 100% | Mutant Dominant Class ---------------- Mutant | -10/Materials Mutant | -10/Subcaves Mutant | -7/Recycling Resources | -11 -10 -10 -7 ----------- Run | Yrd Mat Sub Rec Matter Collected 468 | 207 211 50 . Remotely . | . . . . Salvage Created 449 | . 332 117 . Parts 20 | . 15 5 . Haulers Intercepted 2 | . 2 . . Recyclers Shooed . | . . . . Parts Field Recycled . | . . . . Retrieved Matter . | . . . . Parts Self-Destructed 4 | . . 4 . Prevented . | . . . . Kills | -11 -10 -10 -7 ------- Run | Yrd Mat Sub Rec Combat Hostiles Destroyed 16 | . 9 7 . Melee 8 | . 3 5 . Guns 4 | . 4 . . Classes Destroyed 8 | . 6 2 . Worker 1 | . 1 . . Builder 1 | . 1 . . Hauler 2 | . 2 . . Turret 2 | . . 2 . Watcher 1 | . 1 . . Swarmer 12 | . 6 6 . Grunt 3 | . 3 . . Subdweller 1 | . . 1 . Best Kill Streak 5 | . 4 5 . Combat Bots Only 3 | . 3 3 . Max Kills in Single Turn 2 | . 2 1 . Gunslinging . | . . . . Exploded . | . . . . Melee 1 | . 1 1 . Uniques/NPCs Destroyed . | . . . . Combat | -11 -10 -10 -7 -------- Run | Yrd Mat Sub Rec Hostile Shots Fired 253 | . 46 171 36 Missed 89 | . 14 64 11 Damage Taken 907 | . 218 547 142 Core 251 | . 56 143 52 Absorbed by Shields . | . . . . Ignored by Resistances 308 | . 73 186 49 Core Remaining (%) 100 | 100 . . . Volleys Fired 16 | . 16 . . Largest 2 | . 2 . . Hottest 70 | . 70 . . Shots Fired 31 | . 31 . . Gun 31 | . 31 . . Cannon . | . . . . Launcher . | . . . . Special . | . . . . Kinetic 16 | . 16 . . Thermal 15 | . 15 . . Explosive . | . . . . Electromagnetic . | . . . . Robot Hit Streak 12 | . 12 . . Robot Miss Streak 2 | . 2 . . Penetration Max . | . . . . Secondary Targets . | . . . . Shots Hit Robots 60 | . 34 21 5 Core Hits 14 | . 10 4 . Critical Kills 3 | . 1 2 . Critical Parts Destroyed 4 | . 1 3 . Critical Strikes 8 | . 3 5 . Burn 1 | . 1 . . Smash 7 | . 2 5 . Melee Attacks 49 | . 17 27 5 Impact 49 | . 17 27 5 Slashing . | . . . . Piercing . | . . . . Sneak Attacks 6 | . 4 . 2 Combat Hostiles 2 | . . . 2 Follow-up Attacks 7 | . 1 5 1 Damage Inflicted 1704 | . 901 653 150 Guns 251 | . 251 . . Cannons . | . . . . Explosions . | . . . . Melee 1453 | . 650 653 150 Ramming . | . . . . Kinetic 140 | . 140 . . Thermal 111 | . 111 . . Explosive . | . . . . Electromagnetic . | . . . . Impact 1453 | . 650 653 150 Slashing . | . . . . Piercing . | . . . . Highest Corruption . | . . . . Average Corruption . | . . . . Corruption Purged . | . . . . Corruption Blocked . | . . . . Overload Shots . | . . . . Overflow Damage 391 | . 220 171 . Projectiles 60 | . 60 . . Explosions . | . . . . Melee 331 | . 160 171 . Knockbacks 5 | . 3 2 . Impact 4 | . 2 2 . Kinetic . | . . . . Secondary 1 | . 1 . . Self-Inflicted Damage . | . . . . Shots . | . . . . Rammed . | . . . . Targets Rammed . | . . . . Kicked . | . . . . Crushed . | . . . . Highest Temperature 141 | . 141 . 1 Average Temperature 51 | . 52 . 1 Received Heat Transfer 381 | . 75 240 66 Siege Activations . | . . . . Robots Corrupted 7 | . 5 2 . Combat Hostiles 4 | . 2 2 . Parts Fried 9 | . 7 2 . Impact Corruptions 23 | . 13 10 . Robots Melted . | . . . . Combat Hostiles . | . . . . Parts Melted 1 | . 1 . . Heat Transferred 407 | . 407 . . Parts Sabotaged . | . . . . Parts Stolen . | . . . . Parts Stripped . | . . . . Power Chain Reactions . | . . . . Alert | -11 -10 -10 -7 ------- Run | Yrd Mat Sub Rec Peak Influence 115 | . 115 . 41 Initial 24 | . . . 24 Average 37 | . 40 . 37 Maximum Alert Level . | . . . . Low Security (%) 100 | 100 100 . 100 Level 1 . | . . . . Level 2 . | . . . . Level 3 . | . . . . Level 4 . | . . . . Level 5 . | . . . . High Security . | . . . . Max Security . | . . . . Squads Dispatched . | . . . . Investigation . | . . . . Extermination . | . . . . Reinforcement . | . . . . Assault . | . . . . Garrison . | . . . . Intercept . | . . . . Searches Triggered . | . . . . Construction Impeded . | . . . . Haulers Reinforced . | . . . . Active Scanning Responses . | . . . . Cargo Convoy Interrupts . | . . . . Stealth | -11 -10 -10 -7 --------- Run | Yrd Mat Sub Rec Distress Signals 1 | . 1 . . Communications Jammed . | . . . . Distress Signals . | . . . . Times Spotted 23 | . 11 11 1 Peak Tracking Total 6 | . 3 6 1 Tactical Retreats 2 | . 1 1 . Traps | -11 -10 -10 -7 ------- Run | Yrd Mat Sub Rec Traps Triggered . | . . . . Indirectly . | . . . . Trap Hack Attempts . | . . . . Triggered . | . . . . Disarmed . | . . . . Reprogrammed . | . . . . Reused . | . . . . Traps Extracted . | . . . . Installed . | . . . . Triggered . | . . . . Machines | -11 -10 -10 -7 ---------- Run | Yrd Mat Sub Rec Machines Disabled . | . . . . Max in Single Turn . | . . . . Machines Repaired . | . . . . Machines Dismantled . | . . . . Machines Sabotaged . | . . . . Overloaded Fab Kills . | . . . . Hacking | -11 -10 -10 -7 --------- Run | Yrd Mat Sub Rec Machines Accessed 7 | . 5 . 2 Terminals 7 | . 5 . 2 Fabricators . | . . . . Repair Stations . | . . . . Recycling Units . | . . . . Scanalyzers . | . . . . Garrison Access . | . . . . Total Hacks 22 | . 17 . 5 Successful 15 | . 11 . 4 Failed 7 | . 6 . 1 Catastrophic . | . . . . Database Lockouts . | . . . . Manual 17 | . 12 . 5 Terminals 22 | . 17 . 5 Fabricators . | . . . . Repair Stations . | . . . . Recycling Units . | . . . . Scanalyzers . | . . . . Garrison Access . | . . . . Terminal Hacks 8 | . 6 . 2 Robot Analysis 2 | . 2 . . Prototype ID Bank 1 | . 1 . . Machine Index 1 | . . . 1 Terminal Index 1 | . . . 1 Unreport Threat 2 | . 2 . . Zone Layout 1 | . 1 . . Fabricator Hacks . | . . . . Repair Station Hacks . | . . . . Recycling Unit Hacks . | . . . . Scanalyzer . | . . . . Garrison Access Hacks . | . . . . Unauthorized Hacks 7 | . 5 . 2 Terminals 7 | . 5 . 2 Botnet 7 | . 5 . 2 Fabricators . | . . . . Repair Stations . | . . . . Recycling Units . | . . . . Scanalyzers . | . . . . Garrison Access . | . . . . Data Cores Recovered . | . . . . Used . | . . . . Hacking Detections 7 | . 5 . 2 Full Trace Events . | . . . . Feedback Events . | . . . . Feedback Blocked . | . . . . Robot Schematics Acquired . | . . . . Robots Built . | . . . . Authchips . | . . . . Time . | . . . . Total Robot Build Rating . | . . . . Part Schematics Acquired . | . . . . Parts Built . | . . . . Authchips . | . . . . Time . | . . . . Total Part Build Rating . | . . . . Parts Repaired . | . . . . Time . | . . . . Parts Recycled . | . . . . Recycled Matter . | . . . . Retrieved Matter . | . . . . Retrieved Components . | . . . . Parts Scanalyzed . | . . . . Part Schematics Acquired . | . . . . Parts Damaged . | . . . . Bothacking | -11 -10 -10 -7 ------------ Run | Yrd Mat Sub Rec Used RIF Installer . | . . . . Robots Hacked . | . . . . Non-combat . | . . . . Combat . | . . . . Robot Hacks Applied . | . . . . Relay Couplers Released . | . . . . Fabnet Peak Effective % . | . . . . Robots Rewired . | . . . . Allies Hacked . | . . . . Hacks Repelled . | . . . . Allies | -11 -10 -10 -7 -------- Run | Yrd Mat Sub Rec Total Allies . | . . . . Largest Group . | . . . . Highest-Rated Group . | . . . . Highest-Rated Ally . | . . . . Total Orders . | . . . . Ally Attacks . | . . . . Total Damage . | . . . . Kills . | . . . . Allies Corrupted . | . . . . Allies Melted . | . . . . Intel | -11 -10 -10 -7 ------- Run | Yrd Mat Sub Rec Robot Analysis Total 2 | . 2 . . Derelict Logs Recovered . | . . . . Drone Launches . | . . . . Drone Recoveries . | . . . . Exploration | -11 -10 -10 -7 ------------- Run | Yrd Mat Sub Rec Turns Passed 1961 | 79 1306 445 131 Spaces Moved 1462 | 58 971 329 104 Core 6 | 6 . . . Treads . | . . . . Legs 336 | 52 284 . . Wheels 981 | . 548 329 104 Hover 139 | . 139 . . Flight . | . . . . Fastest Speed 50 | 50 100 115 115 Average Speed 116 | 112 116 115 115 Slowest Speed 245 | 120 245 145 115 Overloaded Moves . | . . . . Propulsion Burnouts . | . . . . Robots Hopped . | . . . . Cave-ins Triggered . | . . . . Exploration Rate (%) 39 | 4 97 23 33 Regions Visited 3 Branch Regions 2 Pre-discovered Areas . | . . . . Known Exits Taken . | . . . . Unknown Exits Taken 3 | 1 1 1 . Scrap Searched 1 | . . 1 . Spaces Dug 2 | . 2 . . Terrain Destroyed 2 | . 2 . . Melee 2 | . 2 . . Projectile . | . . . . AOE . | . . . . Terrain Rammed . | . . . . Walls Destroyed . | . . . . Machines Disabled . | . . . . Actions | -11 -10 -10 -7 --------- Run | Yrd Mat Sub Rec Total 1627 | 69 1091 358 109 Wait 27 | . 27 . . Move 1459 | 57 970 328 104 Hop . | . . . . Pick Up 43 | 6 33 3 1 Fast Attach 4 | 4 . . . Attach 7 | 2 1 4 . Detach . | . . . . Swap 11 | . 10 1 . Drop 21 | . 19 2 . Fire 16 | . 16 . . Melee 39 | . 15 20 4 Ram . | . . . . Kick . | . . . . Crush . | . . . . Escape Stasis . | . . . . Rewire . | . . . . Trap . | . . . . Miscellaneous . | . . . . Route ------- -11/Scrapyard -10/Materials (discovered 5 exits: [*Mat x3] / [*Min] / [*Sub]) -10/Subcaves -7/Recycling History --------- Turn | Location | Event 4 | -11/Scrapyard | Discovered new exit (range 15) 80 | -11/Scrapyard | Entered Materials 309 | -10/Materials | Build established: Mutant 452 | -10/Materials | Discovered new exit (range 11) 654 | -10/Materials | Discovered new exit (range 15) 864 | -10/Materials | Discovered new exit (range 6) 1064 | -10/Materials | Discovered new exit (range 16) 1362 | -10/Materials | Discovered new exit (range 11) 1386 | -10/Materials | Entered Subcaves 1634 | -10/Subcaves | Disturbed a concealed Subdweller 1772 | -10/Subcaves | Discovered new exit (range 14) 1794 | -10/Subcaves | Core integrity fell below 50% 1823 | -10/Subcaves | Lost 3 parts (1p1n1u) 1831 | -10/Subcaves | Entered Recycling 1954 | -7/Recycling | Core integrity fell below 20% 1962 | -7/Recycling | Destroyed by Y-54 Guardian with Flak Gun Last Messages --------------- Found 6 terminals. Downloaded coordinate data. 01854_ Connecting with Terminal... >>Trojan(Botnet) Trojan loaded successfully. Testing... Terminal linked with 1 system. Awaiting botnet instructions. >>Index(Machines) Found 11 machines: 6 Terminals 5 Recycling Units Downloaded coordinate data. 01933_ Acquired ECM Suite. 01943_ Connecting with Recycling Unit... 01952_ Sneak attack on Y-54 Guardian. 01952_ Mace follow-up attack on Y-54 Guardian. 01953_ Y-54 Guardian springs to life. 01953_ Com. Wheel destroyed. 01962_ Ion Engine destroyed. Map ----- +----------------------------------------------------+ | ?????????????????????????????????????????????????? | | ?????????????????????????????????????????????????? | | ?????????????????????????????????????????????????? | | ?????????????????????????????????????????????????? | | ?????????????????????????????????????????????????? | | ?????????????????????????????????????????????????? | | ?????????????????????????????????????????????????? | | ?????????????????????????????????????????????????? | | ?????????????????????????????????????????????????? | | ?????????????????????????????????????????????????? | | ?????????????????????????????????????????????????? | | ???????????????????????? ????????????????????????? | | ??????????????????????## ????????????????????????? | | ??????????????????????## ????????????????????????? | | ??????????????????????## ????????????????????????? | | ??????????????????????## ????????????????????????? | | ??????????????????????## ????????###?????????????? | | ???????????????????????? ###########?????????????? | | ???????????????????????? ######## ?????????????? | | ???????????????????????? ???????????????? | | ???????????????????????? ?????????????????? | | ??????????????????????? ??????????????????? | | ???????????????????????## ##??????????????????? | | ??????????? ### ##??????????????????? | | ???????????############## ##??????????????????? | | ????######### ! #"""####Y@ ##??????????????????? | | ????#########!! #"Y"##### ##+##??????????????????? | | ????## # ??????????????????? | | ????## # ?????????????????????? | | ????## # ?????????????????????? | | ???? # + ?????? ##??????????? | | ???? # # ???? # # ??????????? | | ???? # ########### # ???? # # ??????????? | | ???? + ########### # ???? # # ??????????? | | ??? # ##???????## # ???? # # ??????????? | | ??? # ########?## # ???? # # ??????????? | | ???? # ########### + ???? # # ??????????? | | ???? # # #### #### ???? + + ??????????? | | ????## # #### #### ???? # # ??????????? | | ????## # """ #### ##??????? # # ??????????? | | ????## # """ #### ###????#### ##??????????? | | ????## # """ #### ########### ############? | | ????## # """ ### ########T# ############? | | ###### + ### # ##? | | ###### # """ ### T + ###? | | # """ ### # ##?? | | + """ ### ########## # ##?? | | # """ #####+############ + ##?? | | +###### # ### #### # ##?? | | # # ### #### # ##?? | +----------------------------------------------------+ Best States ------------- Heat Dissipation 35 Energy Generation 10 Energy Capacity 250 Matter Stores 300 Matter Capacity 300 Sight Range 16 Terrain Scan Density 10 Armor Coverage 150 Resistance: KI 20 Resistance: TH 20 Resistance: EX 20 Resistance: EM 20 Resistance: I 20 Resistance: S 20 Resistance: P 20 Evasion (%) 55 Offensive Hacking 10 Item Schematics ----------------- None Robot Schematics ------------------ None Fabricated ------------ Nothing Alien Tech Used ----------------- None Achievements -------------- None Challenges ------------ None Game ------ Seed AlloyTransmissionLeg Manual? 0 Play Time 00:13:26 Cumulative 183.5 hours Start 2024.10.15 @ 10:26:15 End 2024.10.15 @ 14:59:14 Sessions 4 Manual Loads 0 Difficulty Adventurer Special Mode None Game No. 217 Rogue 0 Adventurer 217 Explorer 0 Win Type - Total 0 Types 0/0/0/0/0/0/0/0/0 Lore% 59 Gallery% 56 Achievement% 45 Wizard Run 0 Options --------- Layout 2 ASCII 0 Keyboard 0 Movement Mouse Keybinds 0 Fullscreen 2 Font 48/Smallcaps Map View 50x44 Zoom Use 0% Tactical HUD 1 Map Filters NONE Filters NONE Steam 1 RUN: f03b49ef-d43d-4edf-897e-c27f6460f72a